Cogmind - Beta 9.6 @@@ ROGUE MODE // 2020.05.21 @ 09:11:55 Player: TBExtent Result: Destroyed by Z-Imprinter with Zionite Laser-M Performance ------------- Evolutions (4) 2000 Regions Visited (16) 3200 Robots Destroyed (87) 435 Value Destroyed (2500) 2500 Prototype IDs (34) 680 Alien Tech Used (0) 0 Bonus (225) 225 TOTAL SCORE: 9040 Bonus ------- High Alert Combat Kills 33 Follower Combat Kills 174 Met Data Miner 300 Met Imprinter 300 Friendly Fire -582 Cogmind --------- Core Integrity 0/850 Matter 300/300 Energy 9/100 System Corruption 1% Temperature Cool (27) Movement Flying (105) Ox1 Location -6/Deep Caves Parts ------- > --- POWER (1) -------- (None) > --- PROPULSION (4) --- Improved Flight Unit > --- UTILITY (8) ------ Medium Storage Unit Improved Signal Interpreter Hacking Suite > --- WEAPON (2) ------- (None) > --- INVENTORY (8) ---- Improved Flight Unit Improved Flight Unit Relay Coupler [Programmer] (78) Relay Coupler [Programmer] (66) Relay Coupler [Programmer] (57) Relay Coupler [Programmer] (49) Relay Coupler [Programmer] (50) Peak State ------------ > --- POWER ------------ Light Angular Momentum Engine > --- PROPULSION ------- Improved Flight Unit Improved Flight Unit Improved Flight Unit Improved Flight Unit > --- UTILITY ---------- Medium Storage Unit Advanced Sensor Array Improved Signal Interpreter Experimental Propulsion Shielding Hacking Suite Hacking Suite Makeshift Hacking Suite Improved System Shield > --- WEAPON ----------- Improved Datajack Phasing Sabre > --- INVENTORY -------- Improved Flight Unit Improved Flight Unit Relay Coupler [Programmer] Relay Coupler [Programmer] Relay Coupler [Programmer] Relay Coupler [Programmer] Relay Coupler [Programmer] Phasing Sabre [Rating: 57] Favorites ----------- Power Light Angular Momentum Engine Engine Light Angular Momentum Engine Propulsion Improved Flight Unit Leg Aluminum Leg Flight Unit Improved Flight Unit Utility Hacking Suite Device Advanced Sensor Array Storage High-capacity Storage Unit Processor Improved Signal Interpreter Hackware Hacking Suite Protection Experimental Propulsion Shielding Weapon Assault Rifle Energy Gun Improved Medium Laser Ballistic Gun Assault Rifle Special Weapon Plasma Cutter Slashing Weapon Katana Piercing Weapon Heavy Pick Special Melee Weapon Improved Datajack Build | -11 -10 -9 -9 -9 -7 -7 -7 -7 -7 -7 -6 -6 -6 -6 -6 -6 ------- Run | Scr Mat Mat Sto Rec Fac Was Fac Low Low Dat Pro Fac Low Low Zio Dee Slots Evolved 8 | . . 2 . . 4 . . . . . . 2 . . . . Power . | . . . . . . . . . . . . . . . . . Propulsion 2 | . . 1 . . 1 . . . . . . . . . . . Utility 6 | . . 1 . . 3 . . . . . . 2 . . . . Weapon . | . . . . . . . . . . . . . . . . . Parts Attached 114 | . 14 46 12 2 14 . 1 2 3 . 4 10 1 1 3 1 Power 11 | . 2 5 . . 1 . . . . . 1 2 . . . . Engine 11 | . 2 5 . . 1 . . . . . 1 2 . . . . Core . | . . . . . . . . . . . . . . . . . Reactor . | . . . . . . . . . . . . . . . . . Propulsion 21 | . 3 11 1 1 4 . . 1 . . . . . . . . Treads . | . . . . . . . . . . . . . . . . . Leg 16 | . 3 11 1 1 . . . . . . . . . . . . Wheel . | . . . . . . . . . . . . . . . . . Hover . | . . . . . . . . . . . . . . . . . Flight 5 | . . . . . 4 . . 1 . . . . . . . . Utility 30 | . 2 5 . . 8 . 1 . 2 . 3 5 1 1 2 . Device 9 | . . . . . 3 . . . 2 . 3 1 . . . . Storage 8 | . 2 5 . . 1 . . . . . . . . . . . Processor 4 | . . . . . 2 . 1 . . . . 1 . . . . Hackware 8 | . . . . . 2 . . . . . . 3 1 . 2 . Protection 1 | . . . . . . . . . . . . . . 1 . . Artifact . | . . . . . . . . . . . . . . . . . Weapon 52 | . 7 25 11 1 1 . . 1 1 . . 3 . . 1 1 Energy Gun 18 | . 5 10 3 . . . . . . . . . . . . . Energy Cannon . | . . . . . . . . . . . . . . . . . Ballistic Gun 10 | . . 7 3 . . . . . . . . . . . . . Ballistic Cannon . | . . . . . . . . . . . . . . . . . Launcher . | . . . . . . . . . . . . . . . . . Special Weapon 11 | . 2 7 . . 1 . . . . . . 1 . . . . Impact Weapon . | . . . . . . . . . . . . . . . . . Slashing Weapon 10 | . . 1 5 1 . . . 1 . . . . . . 1 1 Piercing Weapon 1 | . . . . . . . . . . . . 1 . . . . Special Melee Weapon 2 | . . . . . . . . . 1 . . 1 . . . . Unidentified Prototypes 2 | . . 2 . . . . . . . . . . . . . . Parts Lost 44 | . 5 16 3 . . . . 2 . . 2 2 1 . 1 12 Power 7 | . 2 2 . . . . . . . . 1 1 . . . 1 Propulsion 12 | . . 6 2 . . . . 1 . . . . . . . 3 Utility 7 | . . . . . . . . . . . . . 1 . 1 5 Weapon 18 | . 3 8 1 . . . . 1 . . 1 1 . . . 3 Highest Loss Streak 9 | . 2 4 3 . . . . 2 . . 1 1 1 . 1 9 Average Slot Usage (%) 97 | . 97 99 97 92 97 100 100 98 94 100 98 98 99 100 99 81 Engine 9 | . 14 10 11 11 7 7 7 7 7 7 7 5 6 6 6 3 Leg 16 | . 28 32 30 25 1 . . . . . . . . . . . Flight 12 | . . . . . 27 30 30 30 30 30 30 26 26 26 26 23 Device 2 | . . . . . 6 7 7 7 7 7 7 5 6 6 6 3 Storage 19 | . 26 33 33 33 8 7 7 7 7 7 7 6 6 6 6 6 Processor 4 | . . . . . 13 15 15 15 15 15 15 7 6 6 6 6 Hackware 9 | . . . . . 13 15 15 15 15 15 15 31 32 26 25 21 Energy Gun 4 | . 6 9 9 11 2 . . . . . . . . . . . Ballistic Gun 6 | . 16 9 7 5 . . . . . . . . . . . . Special Weapon 2 | . 5 3 . . 4 7 7 5 . . . . . . . . Slashing Weapon 2 | . . . 4 5 7 7 7 7 7 7 7 2 . . 1 4 Piercing Weapon 1 | . . . . . . . . . . . . 3 6 6 4 . Special Melee Weapon 1 | . . . . . . . . . 2 7 5 4 6 6 6 3 Naked Turns . | . . . . . . . . . . . . . . . . . Heaviest Build 101 | 13 58 94 94 94 101 20 20 20 20 20 20 22 22 23 24 24 Greatest Support 30 | 20 20 30 30 30 30 24 24 24 24 24 24 24 24 24 24 24 Greatest Overweight (x) 4 | . 2 3 4 4 3 . . . . . . 1 . . . 1 Average Overweight (x) . | . 1 2 3 3 . . . . . . . . . . . . Largest Inventory Capacity 30 | . 18 26 26 26 30 8 8 8 8 8 8 8 8 8 8 8 Average Capacity 15 | . 15 23 26 26 10 8 8 8 8 8 8 8 8 8 8 8 Most Carried 26 | . 18 26 26 26 26 8 8 8 8 8 8 8 8 8 8 8 Average Carried 14 | . 14 22 25 24 9 7 7 7 7 8 7 7 7 7 7 7 Final Capacity 26 | 6 18 26 26 26 8 8 8 8 8 8 8 8 8 8 8 8 Final Carried 26 | 6 18 24 24 26 8 8 8 8 8 8 7 8 8 8 8 7 Class Distribution -------------------- 26% | Hauler-Mutant 22% | Hacker-Sprinter 19% | Mutant 18% | Hacker-Scout 6% | Commander-Mutant Dominant Class ---------------- Mutant | -10/Materials Hauler-Mutant | -9/Materials Hauler-Mutant | -9/Storage Commander-Mutant | -9/Recycling Commander-Scout | -7/Factory Commander-Scout | -7/Waste Hacker-Scout | -7/Factory Hacker-Scout | -7/Lower Caves Hacker-Scout | -7/Lower Caves Hacker-Scout | -7/Data Miner Hacker-Scout | -6/Proximity Caves Hacker-Sprinter | -6/Factory Hacker-Sprinter | -6/Lower Caves Hacker-Sprinter | -6/Lower Caves Hacker-Sprinter | -6/Zion Hacker-Sprinter | -6/Deep Caves Resources | -11 -10 -9 -9 -9 -7 -7 -7 -7 -7 -7 -6 -6 -6 -6 -6 -6 ----------- Run | Scr Mat Mat Sto Rec Fac Was Fac Low Low Dat Pro Fac Low Low Zio Dee Matter Collected 2101 | 182 394 709 242 78 80 . 41 84 54 . 53 120 43 10 . 11 Remotely . | . . . . . . . . . . . . . . . . . Salvage Created 3616 | . 939 1574 683 13 80 . 61 . . . . 266 . . . . Parts 213 | . 55 88 37 2 5 . 5 . . . . 21 . . . . Haulers Intercepted 12 | . 2 5 1 . 1 . 1 . . . . 2 . . . . Recyclers Shooed 2 | . 2 . . . . . . . . . . . . . . . Parts Field Recycled . | . . . . . . . . . . . . . . . . . Retrieved Matter . | . . . . . . . . . . . . . . . . . Parts Self-Destructed 23 | . . . . . . . . 4 . . 17 . . . 2 . Prevented . | . . . . . . . . . . . . . . . . . Kills | -11 -10 -9 -9 -9 -7 -7 -7 -7 -7 -7 -6 -6 -6 -6 -6 -6 ------- Run | Scr Mat Mat Sto Rec Fac Was Fac Low Low Dat Pro Fac Low Low Zio Dee Combat Hostiles Destroyed 62 | . 16 31 13 1 . . . . . . . 1 . . . . Melee 9 | . . . 8 . . . . . . . . 1 . . . . Guns 51 | . 16 29 5 1 . . . . . . . . . . . . AOE 1 | . . 1 . . . . . . . . . . . . . . Classes Destroyed 13 | . 5 6 . 1 . . . . . . . 1 . . . . Worker 2 | . 1 1 . . . . . . . . . . . . . . Builder 1 | . . 1 . . . . . . . . . . . . . . Tunneler 1 | . . 1 . . . . . . . . . . . . . . Hauler 12 | . 2 5 1 . 1 . 1 . . . . 2 . . . . Recycler 1 | . 1 . . . . . . . . . . . . . . . Operator 8 | . 2 1 . . 1 . 1 . . . . 3 . . . . Drone 1 | . . . . 1 . . . . . . . . . . . . Swarmer 6 | . . 6 . . . . . . . . . . . . . . Grunt 37 | . 16 14 7 . . . . . . . . . . . . . Brawler 1 | . . 1 . . . . . . . . . . . . . . Duelist 2 | . . 2 . . . . . . . . . . . . . . Sentry 14 | . . 8 6 . . . . . . . . . . . . . Programmer 1 | . . . . . . . . . . . . 1 . . . . Best Kill Streak 6 | . 3 6 4 1 1 . 1 . . . . 1 . . . . Combat Bots Only 6 | . 3 6 3 1 . . . . . . . 1 . . . . Max Kills in Single Turn 2 | . 2 1 1 1 1 . 1 . . . . 1 . . . . Gunslinging . | . . . . . . . . . . . . . . . . . Exploded 1 | . . 1 . . . . . . . . . . . . . . Melee 1 | . . . 1 . . . . . . . . 1 . . . . Uniques/NPCs Destroyed . | . . . . . . . . . . . . . . . . . Combat | -11 -10 -9 -9 -9 -7 -7 -7 -7 -7 -7 -6 -6 -6 -6 -6 -6 -------- Run | Scr Mat Mat Sto Rec Fac Was Fac Low Low Dat Pro Fac Low Low Zio Dee Damage Taken 5494 | . 909 1888 384 39 7 . 107 . . . 161 319 65 . 29 1586 Core 1464 | . 171 288 44 17 . . . . . . 94 183 13 . . 654 Absorbed by Shields . | . . . . . . . . . . . . . . . . . Core Remaining (%) 57 | 100 31 . . 12 . . . . . . 86 . . . . . Volleys Fired 272 | . 86 132 14 13 2 . 2 . . . . 23 . . . . Largest 2 | . 2 2 2 2 1 . 1 . . . . 1 . . . . Hottest 85 | . 85 79 79 79 20 . 20 . . . . 20 . . . . Shots Fired 462 | . 131 252 28 24 2 . 2 . . . . 23 . . . . Gun 408 | . 117 239 28 24 . . . . . . . . . . . . Cannon . | . . . . . . . . . . . . . . . . . Launcher . | . . . . . . . . . . . . . . . . . Special 54 | . 14 13 . . 2 . 2 . . . . 23 . . . . Kinetic 236 | . 87 122 14 13 . . . . . . . . . . . . Thermal 148 | . 33 63 14 11 2 . 2 . . . . 23 . . . . Explosive . | . . . . . . . . . . . . . . . . . Electromagnetic 78 | . 11 67 . . . . . . . . . . . . . . Robot Hit Streak 13 | . 9 13 9 1 1 . 1 . . . . 7 . . . . Robot Miss Streak 7 | . 6 6 1 6 7 . 1 . . . . 3 . . . . Penetration Max . | . . . . . . . . . . . . . . . . . Secondary Targets 3 | . . 3 . . . . . . . . . . . . . . Max Gunslinging Chain 1 | . . 1 . . . . . . . . . . . . . . Shots Hit Robots 323 | . 81 152 33 7 3 . 5 . 2 . 1 25 . . 9 5 Core Hits 140 | . 43 60 19 1 2 . 3 . . . . 11 . . . 1 Critical Hits 5 | . . 2 1 . . . . . . . . 2 . . . . Critical Kills 3 | . . 1 1 . . . . . . . . 1 . . . . Critical Parts Destroyed 2 | . . 1 . . . . . . . . . 1 . . . . Melee Attacks 243 | . . 1 27 3 26 . 56 5 4 . 4 70 2 6 31 8 Impact . | . . . . . . . . . . . . . . . . . Slashing 156 | . . 1 27 3 26 . 56 5 2 . 3 23 . . 3 7 Piercing 72 | . . . . . . . . . . . . 47 2 6 17 . Sneak Attacks 20 | . . . 2 . 1 . 1 . 2 . 1 3 . . 9 1 Combat Hostiles 1 | . . . . . . . . . . . . . . . . 1 Follow-up Attacks . | . . . . . . . . . . . . . . . . . Damage Inflicted 6177 | . 1225 2458 904 126 164 . 262 . . . . 857 . . . 181 Guns 3589 | . 1083 2092 315 99 . . . . . . . . . . . . Cannons . | . . . . . . . . . . . . . . . . . Explosions 376 | . 65 311 . . . . . . . . . . . . . . Melee 1875 | . . . 589 27 154 . 241 . . . . 683 . . . 181 Ramming 13 | . . 13 . . . . . . . . . . . . . . Kinetic 1804 | . 729 901 126 48 . . . . . . . . . . . . Thermal 1690 | . 361 884 189 51 10 . 21 . . . . 174 . . . . Explosive . | . . . . . . . . . . . . . . . . . Electromagnetic 795 | . 135 660 . . . . . . . . . . . . . . Impact . | . . . . . . . . . . . . . . . . . Slashing 1192 | . . . 589 27 154 . 241 . . . . . . . . 181 Piercing 683 | . . . . . . . . . . . . 683 . . . . Highest Corruption 10 | . . 3 3 3 . 10 10 10 10 10 10 3 3 3 3 1 Average Corruption 5 | . . 3 3 3 . 10 10 10 10 10 10 2 3 3 1 1 Corruption Purged . | . . . . . . . . . . . . . . . . . Effects 162 | . . 14 12 7 . . 38 25 25 3 19 2 7 7 2 1 Message Errors 28 | . . 2 2 2 . . 2 4 5 1 2 . 2 3 2 1 Matter Fused 27 | . . 3 2 3 . . 5 2 1 1 5 1 4 . . . Heat Flow Errors 17 | . . 2 3 . . . 6 1 4 . . . . 1 . . Energy Discharges 21 | . . 3 2 2 . . 1 2 2 1 4 1 1 2 . . Data Loss (minor) 14 | . . 3 2 . . . 2 3 3 . . . . 1 . . Data Loss (major) 6 | . . . . . . . 4 . 1 . 1 . . . . . Misdirections 36 | . . . . . . . 10 12 8 . 6 . . . . . Targeting Errors 12 | . . . 1 . . . 8 1 1 . 1 . . . . . Weapon Failures 1 | . . 1 . . . . . . . . . . . . . . Overload Shots . | . . . . . . . . . . . . . . . . . Overflow Damage 78 | . 2 4 . . . . 12 . . . . 37 . . . 23 Projectiles 2 | . 2 . . . . . . . . . . . . . . . Explosions 4 | . . 4 . . . . . . . . . . . . . . Melee 72 | . . . . . . . 12 . . . . 37 . . . 23 Knockbacks . | . . . . . . . . . . . . . . . . . Impact . | . . . . . . . . . . . . . . . . . Kinetic . | . . . . . . . . . . . . . . . . . Secondary . | . . . . . . . . . . . . . . . . . Self-Inflicted Damage 65 | . 38 27 . . . . . . . . . . . . . . Shots 2 | . 1 1 . . . . . . . . . . . . . . Rammed . | . . . . . . . . . . . . . . . . . Targets Rammed 1 | . . 1 . . . . . . . . . . . . . . Kicked 1 | . . 1 . . . . . . . . . . . . . . Crushed . | . . . . . . . . . . . . . . . . . Highest Temperature 236 | . 178 236 192 42 . . 223 186 207 . 1 2 . 230 1 26 Average Temperature 44 | . 60 28 41 16 . . 93 100 76 . 1 2 . 133 1 9 Received Heat Transfer 1834 | . 483 555 117 21 . . 48 . . . 24 78 18 . . 490 Effects 2 | . . . . . . . . . . . . . . 2 . . Interference 2 | . . . . . . . . . . . . . . 2 . . Siege Activations . | . . . . . . . . . . . . . . . . . Robots Corrupted 2 | . . 2 . . . . . . . . . . . . . . Combat Hostiles 1 | . . 1 . . . . . . . . . . . . . . Parts Fried 3 | . . 3 . . . . . . . . . . . . . . Impact Corruptions . | . . . . . . . . . . . . . . . . . Robots Melted . | . . . . . . . . . . . . . . . . . Combat Hostiles . | . . . . . . . . . . . . . . . . . Parts Melted 5 | . 1 3 . . . . . . . . . 1 . . . . Heat Transferred 3817 | . 877 1719 407 111 37 . 74 . . . . 592 . . . . Parts Sabotaged . | . . . . . . . . . . . . . . . . . Parts Stolen . | . . . . . . . . . . . . . . . . . Parts Stripped . | . . . . . . . . . . . . . . . . . Power Chain Reactions 5 | . 1 4 . . . . . . . . . . . . . . Missiles Intercepted . | . . . . . . . . . . . . . . . . . Alert | -11 -10 -9 -9 -9 -7 -7 -7 -7 -7 -7 -6 -6 -6 -6 -6 -6 ------- Run | Scr Mat Mat Sto Rec Fac Was Fac Low Low Dat Pro Fac Low Low Zio Dee Peak Influence 1012 | . 289 408 437 414 1012 347 390 . . . . 162 . . . . Average Influence 218 | . 122 261 258 228 866 310 279 . . . . 57 . . . . Maximum Alert Level 3 | . 1 2 2 2 3 1 1 . . . . . . . . . Low Security (%) 48 | . 88 19 35 27 . . 6 . . . . 100 . . . . Level 1 46 | . 11 78 60 72 . 100 93 . . . . . . . . . Level 2 . | . . 1 3 . . . . . . . . . . . . . Level 3 3 | . . . . . 100 . . . . . . . . . . . Level 4 . | . . . . . . . . . . . . . . . . . Level 5 . | . . . . . . . . . . . . . . . . . High Security . | . . . . . . . . . . . . . . . . . Max Security . | . . . . . . . . . . . . . . . . . Squads Dispatched 20 | . 4 1 3 1 2 . 4 . . . . 5 . . . . Investigation 11 | . 2 1 2 . 2 . 2 . . . . 2 . . . . Extermination 3 | . . . . . . . 2 . . . . 1 . . . . Reinforcement 6 | . 2 . 1 1 . . . . . . . 2 . . . . Assault . | . . . . . . . . . . . . . . . . . Garrison . | . . . . . . . . . . . . . . . . . Intercept . | . . . . . . . . . . . . . . . . . Construction Impeded 1 | . . . . 1 . . . . . . . . . . . . Haulers Reinforced 1 | . . . . . . . . . . . . 1 . . . . Stealth | -11 -10 -9 -9 -9 -7 -7 -7 -7 -7 -7 -6 -6 -6 -6 -6 -6 --------- Run | Scr Mat Mat Sto Rec Fac Was Fac Low Low Dat Pro Fac Low Low Zio Dee Distress Signals 13 | . 2 6 4 . . . . . . . . 1 . . . . Communications Jammed . | . . . . . . . . . . . . . . . . . Distress Signals . | . . . . . . . . . . . . . . . . . Times Spotted 221 | . 45 64 24 18 2 5 16 . . . 1 30 8 . . 8 Peak Tracking Total 9 | . 4 6 4 3 1 5 9 . . . 1 5 3 . . 7 Tactical Retreats 24 | . 2 2 1 . . . 6 . . . . 9 4 . . . Traps | -11 -10 -9 -9 -9 -7 -7 -7 -7 -7 -7 -6 -6 -6 -6 -6 -6 ------- Run | Scr Mat Mat Sto Rec Fac Was Fac Low Low Dat Pro Fac Low Low Zio Dee Traps Triggered 3 | . . . . . 1 . 1 . . . . 1 . . . . Indirectly . | . . . . . . . . . . . . . . . . . Trap Hack Attempts . | . . . . . . . . . . . . . . . . . Triggered . | . . . . . . . . . . . . . . . . . Disarmed . | . . . . . . . . . . . . . . . . . Reprogrammed . | . . . . . . . . . . . . . . . . . Reused . | . . . . . . . . . . . . . . . . . Traps Extracted . | . . . . . . . . . . . . . . . . . Installed . | . . . . . . . . . . . . . . . . . Triggered 2 | . . 1 . . . . . . . . . . . 1 . . Machines | -11 -10 -9 -9 -9 -7 -7 -7 -7 -7 -7 -6 -6 -6 -6 -6 -6 ---------- Run | Scr Mat Mat Sto Rec Fac Was Fac Low Low Dat Pro Fac Low Low Zio Dee Machines Disabled 14 | . . 4 5 1 1 . 1 . 1 . . . . . . 1 Max in Single Turn 1 | . . 1 1 1 1 . 1 . 1 . . . . . . . Garrison Access 1 | . . . . . 1 . . . . . . . . . . . Machines Sabotaged . | . . . . . . . . . . . . . . . . . Garrisons Compromised . | . . . . . . . . . . . . . . . . . Overloaded Fab Kills . | . . . . . . . . . . . . . . . . . Fab Network Shutdowns . | . . . . . . . . . . . . . . . . . Hacking | -11 -10 -9 -9 -9 -7 -7 -7 -7 -7 -7 -6 -6 -6 -6 -6 -6 --------- Run | Scr Mat Mat Sto Rec Fac Was Fac Low Low Dat Pro Fac Low Low Zio Dee Machines Accessed 68 | . 7 11 10 6 4 . 15 1 . 4 . 10 . . . . Terminals 41 | . 5 9 8 1 2 . 9 . . . . 7 . . . . Fabricators 3 | . . . . . . . 2 . . . . 1 . . . . Repair Stations . | . . . . . . . . . . . . . . . . . Recycling Units 13 | . 2 1 2 5 1 . 1 . . . . 1 . . . . Scanalyzers 4 | . . 1 . . . . 2 . . . . 1 . . . . Garrison Access 2 | . . . . . 1 . 1 . . . . . . . . . Total Hacks 210 | . 26 31 35 14 9 . 40 1 . 23 . 31 . . . . Successful 138 | . 17 23 23 10 8 . 15 1 . 23 . 18 . . . . Failed 71 | . 9 8 12 4 1 . 25 . . . . 12 . . . . Catastrophic 7 | . . 1 1 1 . . 2 . . . . 2 . . . . Database Lockouts 1 | . . . . . . . . . . . . 1 . . . . Manual 95 | . 21 15 20 5 3 . 15 . 1 . . 15 . . . . Terminals 125 | . 20 22 30 2 7 . 25 . . . . 19 . . . . Fabricators 8 | . . . . . . . 4 . . . . 4 . . . . Repair Stations . | . . . . . . . . . . . . . . . . . Recycling Units 29 | . 6 2 5 12 1 . 1 . . . . 2 . . . . Scanalyzers 21 | . . 7 . . . . 8 . . . . 6 . . . . Garrison Access 3 | . . . . . 1 . 2 . . . . . . . . . Terminal Hacks 72 | . 4 10 15 1 6 . 6 1 . 23 . 6 . . . . Record 11 | . . . . . . . . . . 11 . . . . . . Part Schematic 7 | . 1 . . . . . . . . 5 . 1 . . . . Robot Schematic 4 | . . . . . . . . . . 4 . . . . . . Prototype ID Bank 7 | . . 2 1 1 . . . . . 3 . . . . . . Open Door 4 | . . . 3 . . . . 1 . . . . . . . . Level Access Points 1 | . . . 1 . . . . . . . . . . . . . Branch Access Points 1 | . . . . . . . 1 . . . . . . . . . Emergency Access Points 1 | . . 1 . . . . . . . . . . . . . . Terminal Index 6 | . 1 1 1 . 2 . 1 . . . . . . . . . Fabricator Index 1 | . . . . . . . . . . . . 1 . . . . Alert Level 2 | . . . . . 1 . . . . . . 1 . . . . Unreport Threat 3 | . . . 2 . 1 . . . . . . . . . . . Locate Traps 6 | . . 2 1 . . . 1 . . . . 2 . . . . Maintenance Status 1 | . . . . . 1 . . . . . . . . . . . Recall Extermination 1 | . . . . . . . 1 . . . . . . . . . Registered Components 1 | . 1 . . . . . . . . . . . . . . . Registered Prototypes 2 | . . . . . 1 . 1 . . . . . . . . . Zone Layout 13 | . 1 4 6 . . . 1 . . . . 1 . . . . Fabricator Hacks 6 | . . . . . . . 2 . . . . 4 . . . . Load Schematic 3 | . . . . . . . 1 . . . . 2 . . . . Build 3 | . . . . . . . 1 . . . . 2 . . . . Repair Station Hacks . | . . . . . . . . . . . . . . . . . Recycling Unit Hacks 14 | . 3 1 2 5 1 . 1 . . . . 1 . . . . Report Inventory 13 | . 2 1 2 5 1 . 1 . . . . 1 . . . . Retrieve Components 1 | . 1 . . . . . . . . . . . . . . . Scanalyzer 17 | . . 7 . . . . 6 . . . . 4 . . . . Insert Component 9 | . . 4 . . . . 3 . . . . 2 . . . . Analyze 8 | . . 3 . . . . 3 . . . . 2 . . . . Garrison Access Hacks 1 | . . . . . 1 . . . . . . . . . . . Seal Access 1 | . . . . . 1 . . . . . . . . . . . Unauthorized Hacks 28 | . 10 5 6 4 . . . . . . . 3 . . . . Terminals 19 | . 8 4 4 . . . . . . . . 3 . . . . Track 7 | . 2 2 3 . . . . . . . . . . . . . Assimilate 4 | . 1 . . . . . . . . . . 3 . . . . Botnet 6 | . 4 1 1 . . . . . . . . . . . . . Operators 2 | . 1 1 . . . . . . . . . . . . . . Fabricators . | . . . . . . . . . . . . . . . . . Repair Stations . | . . . . . . . . . . . . . . . . . Recycling Units 9 | . 2 1 2 4 . . . . . . . . . . . . Tunnel 9 | . 2 1 2 4 . . . . . . . . . . . . Scanalyzers . | . . . . . . . . . . . . . . . . . Garrison Access . | . . . . . . . . . . . . . . . . . Data Cores Recovered 1 | . . 1 . . . . . . . . . . . . . . Used . | . . . . . . . . . . . . . . . . . Hacking Detections 52 | . 6 11 8 3 3 . 13 . . . . 8 . . . . Full Trace Events 4 | . . . 1 . 1 . 2 . . . . . . . . . Feedback Events . | . . . . . . . . . . . . . . . . . Feedback Blocked . | . . . . . . . . . . . . . . . . . Robot Schematics Acquired 4 | . . . . . . . . . . 4 . . . . . . Robots Built . | . . . . . . . . . . . . . . . . . Matter . | . . . . . . . . . . . . . . . . . Time . | . . . . . . . . . . . . . . . . . Total Robot Build Rating . | . . . . . . . . . . . . . . . . . Part Schematics Acquired 14 | . 1 3 . . . . 2 . . 5 . 3 . . . . Parts Built 3 | . . . . . . . 1 . . . . 2 . . . . Matter 617 | . . . . . . . 146 . . . . 471 . . . . Time 324 | . . . . . . . 73 . . . . 251 . . . . Total Part Build Rating 10 | . . . . . . . 3 . . . . 7 . . . . Parts Repaired . | . . . . . . . . . . . . . . . . . Time . | . . . . . . . . . . . . . . . . . Parts Recycled . | . . . . . . . . . . . . . . . . . Recycled Matter . | . . . . . . . . . . . . . . . . . Retrieved Matter . | . . . . . . . . . . . . . . . . . Retrieved Components 2 | . 2 . . . . . . . . . . . . . . . Parts Scanalyzed 7 | . . 3 . . . . 2 . . . . 2 . . . . Part Schematics Acquired 7 | . . 3 . . . . 2 . . . . 2 . . . . Parts Damaged . | . . . . . . . . . . . . . . . . . Bothacking | -11 -10 -9 -9 -9 -7 -7 -7 -7 -7 -7 -6 -6 -6 -6 -6 -6 ------------ Run | Scr Mat Mat Sto Rec Fac Was Fac Low Low Dat Pro Fac Low Low Zio Dee Used RIF Installer . | . . . . . . . . . . . . . . . . . Robots Hacked 13 | . . . . . . . . . 2 . 1 . . . 9 1 Non-combat 1 | . . . . . . . . . 1 . . . . . . . Combat 12 | . . . . . . . . . 1 . 1 . . . 9 1 Robot Hacks Applied 13 | . . . . . . . . . 2 . 1 . . . 9 1 parse_system 13 | . . . . . . . . . 2 . 1 . . . 9 1 Relay Couplers Released . | . . . . . . . . . . . . . . . . . Robots Rewired . | . . . . . . . . . . . . . . . . . Allies Hacked . | . . . . . . . . . . . . . . . . . Hacks Repelled . | . . . . . . . . . . . . . . . . . Allies | -11 -10 -9 -9 -9 -7 -7 -7 -7 -7 -7 -6 -6 -6 -6 -6 -6 -------- Run | Scr Mat Mat Sto Rec Fac Was Fac Low Low Dat Pro Fac Low Low Zio Dee Total Allies 18 | . 1 . 10 . . . . . . . 1 3 . . 3 . Largest Group 10 | . 1 . 10 9 9 . . . . . 1 1 . . 3 3 Highest-Rated Group 94 | . 10 . 88 80 80 . . . . . 94 26 . . 90 87 Highest-Rated Ally 94 | . 10 . 16 16 16 . . . . . 94 26 . . 37 37 Total Orders . | . . . . . . . . . . . . . . . . . Ally Attacks 196 | . . . 13 139 4 . . . . . 16 . . . . 24 Total Damage 2021 | . . . 120 890 45 . . . . . 502 . . . . 464 Kills 34 | . . . 2 23 . . . . . . 6 . . . . 3 Allies Corrupted . | . . . . . . . . . . . . . . . . . Allies Melted . | . . . . . . . . . . . . . . . . . Intel | -11 -10 -9 -9 -9 -7 -7 -7 -7 -7 -7 -6 -6 -6 -6 -6 -6 ------- Run | Scr Mat Mat Sto Rec Fac Was Fac Low Low Dat Pro Fac Low Low Zio Dee Robot Analysis Total . | . . . . . . . . . . . . . . . . . Derelict Logs Recovered 8 | . . . . . . . . 2 1 . 1 . 2 1 1 . Drone Launches . | . . . . . . . . . . . . . . . . . Drone Recoveries . | . . . . . . . . . . . . . . . . . Exploration | -11 -10 -9 -9 -9 -7 -7 -7 -7 -7 -7 -6 -6 -6 -6 -6 -6 ------------- Run | Scr Mat Mat Sto Rec Fac Was Fac Low Low Dat Pro Fac Low Low Zio Dee Turns Passed 10861 | . 2131 2400 868 611 277 26 563 426 404 51 407 976 326 459 764 172 Spaces Moved 11048 | 1 1023 946 291 186 387 81 890 904 732 81 629 1355 763 898 1617 264 Core . | . . . . . . . . . . . . . . . . . Treads . | . . . . . . . . . . . . . . . . . Legs 2455 | 1 1023 946 291 186 8 . . . . . . . . . . . Wheels . | . . . . . . . . . . . . . . . . . Hover . | . . . . . . . . . . . . . . . . . Flight 8593 | . . . . . 379 81 890 904 732 81 629 1355 763 898 1617 264 Fastest Speed 26 | 120 120 180 210 210 26 26 26 26 26 26 26 26 26 26 26 26 Average Speed 61 | 120 165 184 216 234 29 26 26 26 26 26 26 26 26 26 26 27 Slowest Speed 240 | 120 180 210 240 240 210 26 26 26 26 26 26 102 26 26 26 105 Overloaded Moves . | . . . . . . . . . . . . . . . . . Propulsion Burnouts . | . . . . . . . . . . . . . . . . . Robots Hopped 18 | . . . . . . . 8 . . . . 10 . . . . Cave-ins Triggered 1 | . . . . . . . . . . . . . . . 1 . Exploration Rate (%) 65 | 2 98 76 69 56 13 84 33 94 90 76 79 35 88 89 87 42 Regions Visited 16 Branch Regions 10 Pre-discovered Areas 15 | . 2 1 2 4 . . . 2 . 1 . . . . 3 . Known Exits Taken 9 | . . . . . . . 1 1 1 1 1 1 1 1 1 . Unknown Exits Taken 5 | 1 1 1 1 1 . . . . . . . . . . . . Scrap Searched 25 | . . . . . . . . 1 10 . 3 . 3 6 2 . Spaces Dug 144 | . . 1 4 . 20 . 47 5 1 . 3 50 2 6 5 . Terrain Destroyed 172 | . 2 27 4 . 20 . 47 5 1 . 3 50 2 6 5 . Melee 144 | . . 1 4 . 20 . 47 5 1 . 3 50 2 6 5 . Projectile . | . . . . . . . . . . . . . . . . . AOE 28 | . 2 26 . . . . . . . . . . . . . . Actions | -11 -10 -9 -9 -9 -7 -7 -7 -7 -7 -7 -6 -6 -6 -6 -6 -6 --------- Run | Scr Mat Mat Sto Rec Fac Was Fac Low Low Dat Pro Fac Low Low Zio Dee Total 14239 | . 1323 1328 460 333 512 85 1124 1087 941 110 868 1805 885 1110 1917 351 Wait 2395 | . 158 147 107 127 63 3 164 175 196 30 229 339 119 205 255 78 Move 10999 | . 1022 946 290 185 387 80 873 903 731 80 628 1336 762 897 1615 264 Hop 16 | . . . . . . . 8 . . . . 8 . . . . Pick Up 99 | . 29 36 6 2 2 1 1 1 3 . . 10 1 1 6 . Fast Attach 17 | . 1 1 . 1 2 . . 1 2 . 2 5 . . 2 . Attach 44 | . 5 18 2 . 10 . . 1 1 . 1 4 . 1 . 1 Detach . | . . . . . . . . . . . . . . . . . Swap 54 | . 8 28 10 1 2 . 1 . . . 1 1 1 . 1 . Drop 80 | . 14 19 4 . 18 1 1 1 4 . 3 9 . . 6 . Fire 272 | . 86 132 14 13 2 . 2 . . . . 23 . . . . Melee 243 | . . 1 27 3 26 . 56 5 4 . 4 70 2 6 31 8 Ram . | . . . . . . . . . . . . . . . . . Kick . | . . . . . . . . . . . . . . . . . Crush . | . . . . . . . . . . . . . . . . . Escape Stasis 19 | . . . . . . . 18 . . . . . . . 1 . Rewire 1 | . . . . 1 . . . . . . . . . . . . Trap . | . . . . . . . . . . . . . . . . . Miscellaneous . | . . . . . . . . . . . . . . . . . Route ------- -11/Scrapyard -10/Materials (discovered 4 exits: *Mat x3 / [*Min]) -9/Materials (discovered 5 exits: *Mat / [*Min x2] / *Sto x2) -9/Storage (discovered 2 exits: Mat / *Rec) -9/Recycling -7/Factory -7/Waste -7/Factory (discovered 5 exits: *Fac x3 / *Low x2) -7/Lower Caves -7/Lower Caves (discovered 2 exits: *Fac / *Dat) -7/Data Miner -6/Proximity Caves -6/Factory (discovered 3 exits: *Fac x2 / *Low) -6/Lower Caves -6/Lower Caves (discovered 2 exits: *Fac / *Zio) -6/Zion (discovered 2 exits: *Dee / [*Pro]) -6/Deep Caves History --------- Turn | Location | Event 1 | -11/Scrapyard | Discovered new exit (range 0) 1 | -11/Scrapyard | Entered Materials 11 | -10/Materials | Discovered new exit (range 15) 327 | -10/Materials | Build established: Mutant 507 | -10/Materials | Discovered new exit (range 16) 639 | -10/Materials | Discovered new exit (range 17) 921 | -10/Materials | Core integrity fell below 50% 1568 | -10/Materials | Discovered new exit (range 10) 2132 | -10/Materials | Entered another Materials area 2132 | -9/Materials | Evolved 2 slots: Propulsion x1, Utility x1 2352 | -9/Materials | Discovered new exit (range 11) 2441 | -9/Materials | Discovered new exit (range 13) 2555 | -9/Materials | Lost 4 parts (1p2n1w) 2750 | -9/Materials | Discovered new exit (range 16) 2763 | -9/Materials | Build established: Hauler-Mutant 3552 | -9/Materials | Discovered new exit (range 7) 3557 | -9/Materials | Core integrity fell below 50% 3856 | -9/Materials | Lost 3 parts (2n1w) 4511 | -9/Materials | Discovered new exit (range 7) 4532 | -9/Materials | Entered Storage 4940 | -9/Storage | Identified exit to Materials 5232 | -9/Storage | Core integrity fell below 20% 5270 | -9/Storage | Lost 3 parts (2n1w) 5278 | -9/Storage | Assisted by bots powering up and referring to "LRC-V3" 5386 | -9/Storage | Used back door to open Recycling access 5386 | -9/Storage | Discovered new exit (range 5) 5400 | -9/Storage | Entered Recycling 5400 | -9/Recycling | Accompanied by 9 allies 5426 | -9/Recycling | Spotter reported a threat 5428 | -9/Recycling | Spotter reported a threat 5438 | -9/Recycling | Spotter reported a threat 5455 | -9/Recycling | Spotter reported a threat 5484 | -9/Recycling | Spotter reported a threat 5508 | -9/Recycling | Spotter reported a threat 5521 | -9/Recycling | Spotter reported a threat 5545 | -9/Recycling | Spotter reported a threat 5581 | -9/Recycling | Build established: Commander-Mutant 5599 | -9/Recycling | Spotter reported a threat 5599 | -9/Recycling | Spotter reported a threat 5600 | -9/Recycling | Spotter reported a threat 5631 | -9/Recycling | Spotter reported a threat 5646 | -9/Recycling | Spotter reported a threat 5652 | -9/Recycling | Spotter reported a threat 5653 | -9/Recycling | Spotter reported a threat 5684 | -9/Recycling | Spotter reported a threat 5687 | -9/Recycling | Spotter reported a threat 5704 | -9/Recycling | Spotter reported a threat 5706 | -9/Recycling | Spotter reported a threat 5735 | -9/Recycling | Spotter reported a threat 5736 | -9/Recycling | Spotter reported a threat 5762 | -9/Recycling | Spotter reported a threat 5764 | -9/Recycling | Spotter reported a threat 5786 | -9/Recycling | Spotter reported a threat 5821 | -9/Recycling | Spotter reported a threat 5821 | -9/Recycling | Spotter reported a threat 5821 | -9/Recycling | Spotter reported a threat 5822 | -9/Recycling | Spotter reported a threat 5850 | -9/Recycling | Discovered new exit (range 15) 5955 | -9/Recycling | Spotter reported a threat 6008 | -9/Recycling | Spotter reported a threat 6011 | -9/Recycling | Entered Factory 6011 | -7/Factory | Accompanied by 9 allies 6011 | -7/Factory | Evolved 4 slots: Propulsion x1, Utility x3 6288 | -7/Factory | Sucked down chute 6288 | -7/Factory | Entered Waste 6293 | -7/Waste | Spotted C-40 Crusher 6293 | -7/Waste | Spotted C-40 Crusher 6293 | -7/Waste | Spotted C-40 Crusher 6295 | -7/Waste | Spotted C-40 Crusher 6302 | -7/Waste | Discovered new exit (range 20) 6302 | -7/Waste | Spotted C-40 Crusher 6303 | -7/Waste | EMP discharged 6303 | -7/Waste | System corruption reached 10% 6304 | -7/Waste | Spotted C-40 Crusher 6306 | -7/Waste | Identified exit to Factory 6314 | -7/Waste | Entered Factory 6429 | -7/Factory | Discovered new exit (range 17) 6436 | -7/Factory | Identified exit to Factory 6553 | -7/Factory | Discovered exit to Factory (range 5) 6632 | -7/Factory | Build established: Hacker-Scout 6668 | -7/Factory | Identified exit to Lower Caves 6750 | -7/Factory | Discovered exit to Factory (range 9) 6855 | -7/Factory | Fabricated Hacking Suite (x1) 6877 | -7/Factory | Entered Lower Caves 6881 | -7/Lower Caves | Encountered a Warlord checkpoint 7092 | -7/Lower Caves | Learned location of Zion (-6) 7244 | -7/Lower Caves | Spotted B-75 Beast 7290 | -7/Lower Caves | Discovered new exit (range 8) 7292 | -7/Lower Caves | Identified exit to Lower Caves 7303 | -7/Lower Caves | Entered another Lower Caves area 7354 | -7/Lower Caves | Discovered exit to Factory (range 11) 7414 | -7/Lower Caves | Learned Factory terminal intel 7592 | -7/Lower Caves | Discovered new exit (range 9) 7600 | -7/Lower Caves | Identified exit to Data Miner 7602 | -7/Lower Caves | Encountered a Warlord checkpoint 7692 | -7/Lower Caves | Acquired the password to a Derelict Tinkerer's latest research 7707 | -7/Lower Caves | Entered Data Miner 7707 | -7/Data Miner | Discovered new exit (range 6) 7711 | -7/Data Miner | Met Data Miner 7718 | -7/Data Miner | Learned location of Section 7 (-2) 7718 | -7/Data Miner | Acquired the access code to Warlord's prototype stash 7723 | -7/Data Miner | Received God Mode back door access code from Data Miner 7728 | -7/Data Miner | Identified exit to Proximity Caves 7758 | -7/Data Miner | Entered Proximity Caves 8012 | -6/Proximity Caves | Escorted by Enhanced Grunt 8071 | -6/Proximity Caves | Spotted B-75 Beast 8129 | -6/Proximity Caves | Learned Factory stockpile data 8133 | -6/Proximity Caves | Discovered exit to Factory (range 4) 8165 | -6/Proximity Caves | Entered Factory 8165 | -6/Factory | Evolved 2 slots: Utility x2 8167 | -6/Factory | Loaded intel: 20 terminal locations 8316 | -6/Factory | Discovered new exit (range 12) 8387 | -6/Factory | Identified exit to Factory 8445 | -6/Factory | Spotted B-75 Beast 8535 | -6/Factory | Discovered new exit (range 6) 8536 | -6/Factory | Identified exit to Lower Caves 8614 | -6/Factory | Discovered exit to Factory (range 6) 8630 | -6/Factory | Central database locked down 8659 | -6/Factory | Incoming investigation squad redirected 8666 | -6/Factory | Found Prototype Processor 8686 | -6/Factory | Build established: Hacker-Sprinter 8824 | -6/Factory | Fabricated Exp. Propulsion Shielding? 9002 | -6/Factory | Fabricated Imp. Flight Unit (x1) 9141 | -6/Factory | Entered Lower Caves 9151 | -6/Lower Caves | Spotted B-75 Beast 9160 | -6/Lower Caves | Identified exit to Lower Caves 9310 | -6/Lower Caves | Attracted the attention of an 0b10 checkpoint 9394 | -6/Lower Caves | Learned 8 Factory zone layouts 9467 | -6/Lower Caves | Entered another Lower Caves area 9558 | -6/Lower Caves | Discovered exit to Factory (range 7) 9721 | -6/Lower Caves | Discovered new exit (range 6) 9723 | -6/Lower Caves | Identified exit to Zion 9795 | -6/Lower Caves | Encountered a Warlord checkpoint 9926 | -6/Lower Caves | Entered Zion 9940 | -6/Zion | Discovered new exit (range 15) 9973 | -6/Zion | System corruption cleaned by Quarantine Array 10042 | -6/Zion | Visited the Megawrench Repair Shop 10042 | -6/Zion | Megawrench repaired 12 parts 10074 | -6/Zion | Identified exit to Deep Caves 10076 | -6/Zion | Learned location of Quarantine (-2) 10108 | -6/Zion | Learned location of Warlord (-5) 10135 | -6/Zion | Given A8's code to call for help 10201 | -6/Zion | Gained Derelict followers 10275 | -6/Zion | Found Relay Coupler [Programmer] 10278 | -6/Zion | Found Relay Coupler [Programmer] 10281 | -6/Zion | Found Relay Coupler [Programmer] 10283 | -6/Zion | Found Relay Coupler [Programmer] 10285 | -6/Zion | Found Relay Coupler [Programmer] 10423 | -6/Zion | Crushed by falling debris 10640 | -6/Zion | Saw the warning signs outside the Deep Caves entrance 10690 | -6/Zion | Entered Deep Caves 10690 | -6/Deep Caves | Accompanied by 3 allies 10793 | -6/Deep Caves | Attacked by Z-Imprinter 10813 | -6/Deep Caves | Core integrity fell below 50% 10848 | -6/Deep Caves | Lost 9 parts (1p1n4u3w) 10851 | -6/Deep Caves | Z-Facility disabled 10859 | -6/Deep Caves | Core integrity fell below 20% 10862 | -6/Deep Caves | Destroyed by Z-Imprinter with Zionite Laser-M Last Messages --------------- 10797_ Adv. Sensor Array destroyed. 10800_ Imp. Datajack destroyed. 10801_ Imp. System Shield destroyed. 10805_ Destroyed Zio. Light Carapace. 10807_ Phasing Sabre destroyed. 10808_ Lgt. Angular Momentum Engine destroyed. 10813_ HV Slug penetrates Wall. 10813_ Exp. Propulsion Shielding destroyed. 10813_ Mak. Hacking Suite destroyed. 10815_ Penetrated by HV Slug. 10815_ Knocked back. 10817_ Phasing Sabre destroyed. 10817_ Penetrated by HV Slug. 10817_ Knocked back. 10817_ Imp. Flight Unit destroyed. 10819_ HV Slug penetrates Wall. 10846_ JGC&VBN>=HSBM CAPZXCUAOWIWU 10851_ Z-Facility disabled. 10851_ Hacking Suite destroyed. 10855_ Imp. Flight Unit destroyed. Map ----- +----------------------------------------------------+ | ?????????????????????????????????????????????????? | | ?????????????????????????????????????????????????? | | ?????????????????????????????????????????????????? | | ?????????????????????????????????????????????????? | | ?????????????????????????????????????????????????? | | ????????????????????????????? ??????????????? | | ??????????????????????????? ????????????? | | ???????????????????????? "?????????? | | ?????????????????????? "?????????? | | ???????????????????? """???????" | | ??????????????????? ""??????" | | ?????????????????? ""?????? | | ????????????????? ""??????" | | ??????????????? ""??????? | | ???????????????? """?????"" | | ????????????????# """????""" | | ????????????????# """????? | | ?????????????????# """"?????" | | ?????????????????# """""? ??" | | ??????????????????# """""" """ | | ??????????????????# """"" """ | | ?????????????# ???# """" """ | | ?????????????# # """" "" | | ?????????????# """" " | | ????????????# """" | | ?????????? @ """"""" | | ?????????? z """"""" | | ?????????? I | | ??????????? # | | ????????????# | | ????????????### | | ??????????????# | | ??????????????## z | | ???????????????# | | ???????????????# ###zz ### | | ???????????????## ###?# #?## | | ????????????????# ????#####??### # | | ????????????????## ######?????????????########### | | ???????????????????#?????????????????????????????? | | | | | | | | | | | | | | | | | | | | | | | +----------------------------------------------------+ Best States ------------- Heat Dissipation 37 Energy Generation 18 Energy Capacity 280 Matter Stores 300 Matter Capacity 300 Sight Range 22 Robot Scan Range 16 Terrain Scan Density 10 Propulsion Shielding 90 Evasion (%) 64 Targeting Accuracy 6 Offensive Hacking 41 Defensive Hacking 12 Item Schematics ----------------- Med. Storage Unit | -10/Materials | Hacked Imp. Flight Unit | -9/Materials | Scanalyzed Hacking Suite | -9/Materials | Scanalyzed Plasma Cutter | -9/Materials | Scanalyzed Nanoactuators | -7/Factory | Scanalyzed Hvy. Ion Engine | -7/Factory | Scanalyzed Combat Drone Bay | -7/Data Miner | Free Lgt. Regenerative Plating | -7/Data Miner | Free Triangulator | -7/Data Miner | Free Cloaking Device | -7/Data Miner | Free Plasma Sword | -7/Data Miner | Free Imp. Datajack | -6/Factory | Scanalyzed System Shield | -6/Factory | Scanalyzed Exp. Propulsion Shielding | -6/Factory | Hacked Robot Schematics ------------------ S-27 Virus | -7/Data Miner | Free G-50 Soldier | -7/Data Miner | Free G-67 Veteran | -7/Data Miner | Free I-36 Angel | -7/Data Miner | Free Fabricated ------------ Hacking Suite | x1 | -7/Factory Exp. Propulsion Shielding | x1 | -6/Factory Imp. Flight Unit | x1 | -6/Factory Alien Tech Used ----------------- None Achievements -------------- \\IAMDERELICT Challenges ------------ None Game ------ Seed AbsorptionStructuralFlail Manual? 0 Play Time 02:43:15 Cumulative 248.3 hours Start 2020.05.18 @ 19:27:06 End 2020.05.21 @ 09:11:55 Sessions 5 Manual Loads 0 Difficulty Rogue Special Mode None Game No. 131 Rogue 123 Adventurer 8 Explorer 0 Win Type - Total 12 Types 9/0/1/2/0/0/0 Lore% 78 Gallery% 79 Achievement% 66 Wizard Run 0 Options --------- ASCII 0 Keyboard 0 Movement Mouse Keybinds 0 Fullscreen 2 Font 14/SmallcapsGlow Map View 72x52 Tactical HUD 1 Map Filters NONE Filters NONE Steam 0 RUN: 5728ad05-a5db-4335-8649-c8305d5d0179